fUSD/lending_fUSD_20250124
["ID","MTS","AMOUNT","RATE_DAILY","PERIOD"]
[350207806,1737690634712,-150.77,0.0001949,2]
[350207807,1737690634721,-150.77,0.0001949,2]
[350207808,1737690634731,-150.77,0.0001949,2]
[350207809,1737690634740,-150.77,0.0001949,2]
[350207810,1737690634749,-150.77,0.0001949,2]
[350207811,1737690634758,-150.77,0.0001949,2]
[350207812,1737690634767,-150.77,0.0001949,2]
[350207813,1737690634777,-150.77,0.0001949,2]
[350207814,1737690634785,-150.77,0.0001949,2]
[350207815,1737690634794,-150.0,0.00019491,2]
[350207816,1737690634804,-528.21806486,0.00019494,2]
[350207817,1737690634812,-8401.6630587,0.00019494,2]
[350207818,1737690634821,-286.7519531,0.00019494,2]
[350207819,1737690634832,-7484.7435556,0.00019494,2]
[350207820,1737690634841,-500.0,0.00019498,2]
[350207821,1737690634850,-500.0,0.00019498,2]
[350207822,1737690634859,-500.0,0.00019498,2]
[350207823,1737690634868,-500.0,0.00019498,2]
[350207824,1737690634878,-500.0,0.00019498,2]
[350207825,1737690634887,-500.0,0.00019498,2]
[350207826,1737690634897,-500.0,0.00019498,2]
[350207827,1737690634906,-500.0,0.00019498,2]
[350207828,1737690634916,-500.0,0.00019498,2]
[350207829,1737690634925,-192.71646501,0.00019499,2]
[350207830,1737690634935,-500.0,0.00019499,2]
[350207831,1737690634944,-282.92,0.00019499,2]
[350207832,1737690634954,-500.0,0.00019499,2]
[350207833,1737690634964,-500.0,0.00019499,2]
[350207834,1737690634973,-500.0,0.00019499,2]
[350207835,1737690634982,-500.0,0.00019499,2]
[350207836,1737690634992,-500.0,0.00019499,2]
[350207837,1737690635001,-500.0,0.00019499,2]
[350207838,1737690635010,-500.0,0.00019499,2]
[350207839,1737690635019,-500.0,0.00019499,2]
[350207840,1737690635028,-500.0,0.00019499,2]
[350207841,1737690635037,-500.0,0.00019499,2]
[350207842,1737690635047,-500.0,0.00019499,2]
[350207843,1737690635055,-500.0,0.00019499,2]
[350207844,1737690635064,-500.0,0.00019499,2]
[350207845,1737690635073,-500.0,0.00019499,2]
[350207846,1737690635083,-500.0,0.00019499,2]
[350207847,1737690635092,-500.0,0.00019499,2]
[350207848,1737690635102,-500.0,0.00019499,2]
[350207849,1737690635117,-500.0,0.00019499,2]
[350207850,1737690635126,-500.0,0.00019499,2]
[350207851,1737690635135,-410.94283298,0.00019499,2]
[350207852,1737690635145,-500.0,0.00019499,2]
[350207853,1737690635155,-500.0,0.00019499,2]
[350207854,1737690635185,-540.67,0.00019499,2]
[350207855,1737690635196,-500.0,0.00019499,2]
[350207856,1737690635205,-522.11561291,0.00019499,2]
[350207857,1737690635214,-629.0,0.00019499,2]
[350207858,1737690635223,-500.0,0.00019499,2]
[350207859,1737690635232,-500.0,0.00019499,2]
[350207860,1737690635241,-500.0,0.00019499,2]
[350207861,1737690635250,-500.0,0.00019499,2]
[350207862,1737690635259,-500.0,0.00019499,2]
[350207863,1737690635268,-500.0,0.00019499,2]
[350207864,1737690635277,-182.81528955,0.00019499,2]
[350207865,1737690635287,-503.65837513,0.00019499,2]
[350207866,1737690635295,-500.0,0.00019499,2]
[350207867,1737690635304,-515.42809511,0.00019499,2]
[350207868,1737690635313,-500.0,0.00019499,2]
[350207869,1737690635322,-500.0,0.00019499,2]
[350207870,1737690635334,-500.0,0.00019499,2]
[350207871,1737690635343,-498.18899459,0.00019499,2]
[350207872,1737690635352,-520.74584066,0.00019499,2]
[350207873,1737690635362,-500.0,0.00019499,2]
[350207874,1737690635371,-354.06873649,0.00019499,2]
[350207875,1737690635380,-500.0,0.00019499,2]
[350207876,1737690635389,-506.57354595,0.00019499,2]
[350207877,1737690635398,-500.0,0.00019499,2]
[350207878,1737690635407,-564.26,0.00019499,2]
[350207879,1737690635416,-500.0,0.00019499,2]
[350207880,1737690635425,-500.0,0.00019499,2]
[350207881,1737690635434,-500.0,0.00019499,2]
[350207882,1737690635443,-500.0,0.00019499,2]
[350207883,1737690635452,-500.0,0.00019499,2]
[350207884,1737690635461,-500.13,0.00019499,2]
[350207885,1737690635470,-500.0,0.00019499,2]
[350207886,1737690635479,-500.0,0.00019499,2]
[350207887,1737690635489,-500.0,0.00019499,2]
[350207888,1737690635497,-509.92658861,0.00019499,2]
[350207889,1737690635506,-500.0,0.00019499,2]
[350207890,1737690635515,-505.60830058,0.00019499,2]
[350207891,1737690635524,-616.08648505,0.00019499,2]
[350207892,1737690635534,-500.0,0.00019499,2]
[350207893,1737690635543,-500.0,0.00019499,2]
[350207894,1737690635552,-500.0,0.00019499,2]
[350207895,1737690635561,-290.97294924,0.00019499,2]
[350207896,1737690635570,-500.0,0.00019499,2]
[350207897,1737690635579,-500.0,0.00019499,2]
[350207898,1737690635591,-500.0,0.00019499,2]
[350207899,1737690635600,-500.0,0.00019499,2]
[350207900,1737690635609,-505.60659664,0.00019499,2]
[350207901,1737690635619,-500.0,0.00019499,2]
[350207902,1737690635628,-500.0,0.00019499,2]
[350207903,1737690635637,-500.0,0.00019499,2]
[350207904,1737690635646,-500.0,0.00019499,2]
[350207905,1737690635655,-527.41247381,0.00019499,2]
[350207906,1737690635664,-500.0,0.00019499,2]
[350207907,1737690635673,-246.99701582,0.00019499,2]
[350207908,1737690635682,-500.0,0.00019499,2]
[350207909,1737690635691,-642.86633712,0.00019499,2]
[350207910,1737690635700,-500.0,0.00019499,2]
[350207911,1737690635710,-500.0,0.00019499,2]
[350207912,1737690635719,-500.0,0.00019499,2]
[350207913,1737690635728,-500.0,0.00019499,2]
[350207914,1737690635737,-500.0,0.00019499,2]
[350207915,1737690635747,-500.0,0.00019499,2]
[350207916,1737690635756,-500.0,0.00019499,2]
[350207917,1737690635765,-500.0,0.00019499,2]
[350207918,1737690635775,-500.0,0.00019499,2]
[350207919,1737690635784,-500.0,0.00019499,2]
[350207920,1737690635794,-500.0,0.00019499,2]
[350207921,1737690635803,-500.0,0.00019499,2]
[350207922,1737690635813,-500.0,0.00019499,2]
[350207923,1737690635822,-500.0,0.00019499,2]
[350207924,1737690635833,-515.73,0.00019499,2]
[350207925,1737690635843,-500.0,0.00019499,2]
[350207926,1737690635853,-500.0,0.00019499,2]
[350207927,1737690635862,-500.0,0.00019499,2]
[350207928,1737690635871,-500.0,0.00019499,2]
[350207929,1737690635881,-308.3250635,0.00019499,2]
[350207930,1737690635890,-500.0,0.00019499,2]
[350207931,1737690635899,-423.06526336,0.00019499,2]
[350207932,1737690635909,-1223.024711,0.00019499,2]
[350207933,1737690635918,-547.91261331,0.00019499,2]
[350207934,1737690635928,-500.0,0.00019499,2]
[350207935,1737690635936,-1309.17,0.00019499,2]
[350207936,1737690635946,-500.0,0.00019499,2]
[350207937,1737690635955,-500.0,0.00019499,2]
[350207938,1737690635965,-508.77257298,0.00019499,2]
[350207939,1737690635975,-514.31374716,0.00019499,2]
[350207940,1737690635985,-1293.81,0.00019499,2]
[350207941,1737690635994,-510.81245105,0.00019499,2]
[350207942,1737690636003,-500.0,0.00019499,2]
[350207943,1737690636013,-500.0,0.00019499,2]
[350207944,1737690636023,-500.0,0.00019499,2]
[350207945,1737690636032,-2006.83,0.00019499,2]
[350207946,1737690636042,-500.0,0.00019499,2]
[350207947,1737690636051,-564.02213759,0.00019499,2]
[350207948,1737690636060,-500.0,0.00019499,2]
[350207949,1737690636070,-500.0,0.00019499,2]
[350207950,1737690636079,-500.0,0.00019499,2]
[350207951,1737690636094,-500.0,0.00019499,2]
[350207952,1737690636107,-892.665486,0.00019499,2]
[350207953,1737690636116,-500.0,0.00019499,2]
[350207954,1737690636126,-500.0,0.00019499,2]
[350207955,1737690636135,-500.0,0.00019499,2]
[350207956,1737690636145,-200.0,0.00019499,2]
[350207957,1737690636155,-500.0,0.00019499,2]
[350207958,1737690636164,-500.0,0.00019499,2]
[350207959,1737690636175,-500.0,0.00019499,2]
[350207960,1737690636185,-500.0,0.00019499,2]
[350207961,1737690636196,-159.735551,0.00019499,2]
[350207962,1737690636205,-500.0,0.00019499,2]
[350207963,1737690636215,-500.0,0.00019499,2]
[350207964,1737690636224,-500.0,0.00019499,2]
[350207965,1737690636233,-500.0,0.00019499,2]
[350207966,1737690636243,-539.51,0.00019499,2]
[350207967,1737690636252,-158.080765,0.00019499,2]
[350207968,1737690636261,-500.0,0.00019499,2]
[350207969,1737690636270,-563.84,0.00019499,2]
[350207970,1737690636279,-500.0,0.00019499,2]
[350207971,1737690636288,-500.0,0.00019499,2]
[350207972,1737690636297,-500.0,0.00019499,2]
[350207973,1737690636306,-589.76,0.00019499,2]
[350207974,1737690636315,-503.87,0.00019499,2]
[350207975,1737690636324,-500.0,0.00019499,2]
[350207976,1737690636334,-500.0,0.00019499,2]
[350207977,1737690636343,-500.0,0.00019499,2]
[350207978,1737690636353,-1144.85,0.00019499,2]
[350207979,1737690636362,-500.0,0.00019499,2]
[350207980,1737690636372,-500.0,0.00019499,2]
[350207981,1737690636381,-500.0,0.00019499,2]
[350207982,1737690636390,-500.0,0.00019499,2]
[350207983,1737690636398,-500.0,0.00019499,2]
[350207984,1737690636407,-500.0,0.00019499,2]
[350207985,1737690636416,-500.0,0.00019499,2]
[350207986,1737690636425,-500.0,0.00019499,2]
[350207987,1737690636434,-474.80590998,0.00019499,2]
[350207988,1737690636443,-500.0,0.00019499,2]
[350207989,1737690636452,-505.60234028,0.00019499,2]
[350207990,1737690636461,-500.0,0.00019499,2]
[350207991,1737690636470,-500.0,0.00019499,2]
[350207992,1737690636479,-500.0,0.00019499,2]
[350207993,1737690636488,-500.0,0.00019499,2]
[350207994,1737690636498,-500.0,0.00019499,2]
[350207995,1737690636507,-500.0,0.00019499,2]
[350207996,1737690636515,-500.0,0.00019499,2]
[350207997,1737690636524,-500.0,0.00019499,2]
[350207998,1737690636534,-500.0,0.00019499,2]
[350207999,1737690636543,-500.0,0.00019499,2]
[350208000,1737690636552,-500.0,0.00019499,2]
[350208001,1737690636561,-500.0,0.00019499,2]
[350208002,1737690636571,-500.0,0.00019499,2]
[350208003,1737690636579,-500.0,0.00019499,2]
[350208004,1737690636590,-1000.0,0.00019499,2]
[350208005,1737690636599,-500.0,0.00019499,2]
[350208006,1737690636608,-500.0,0.00019499,2]
[350208007,1737690636617,-500.0,0.00019499,2]
[350208008,1737690636626,-500.0,0.00019499,2]
[350208009,1737690636636,-500.0,0.00019499,2]
[350208010,1737690636645,-500.0,0.00019499,2]
[350208011,1737690636656,-500.0,0.00019499,2]
[350208012,1737690636665,-500.0,0.00019499,2]
[350208013,1737690636675,-500.0,0.00019499,2]
[350208014,1737690636684,-500.0,0.00019499,2]
[350208015,1737690636693,-500.0,0.00019499,2]
[350208016,1737690636703,-500.0,0.00019499,2]
[350208017,1737690636714,-330.4,0.00019499,2]
[350208018,1737690636724,-500.0,0.00019499,2]
[350208019,1737690636734,-500.0,0.00019499,2]
[350208020,1737690636743,-500.0,0.00019499,2]
[350208021,1737690636754,-500.0,0.00019499,2]
[350208022,1737690636765,-500.0,0.00019499,2]
[350208023,1737690636774,-500.0,0.00019499,2]
[350208024,1737690636784,-500.0,0.00019499,2]
[350208025,1737690636794,-500.0,0.00019499,2]
[350208026,1737690636804,-500.71,0.00019499,2]
[350208027,1737690636814,-500.0,0.00019499,2]
[350208028,1737690636824,-531.07271663,0.00019499,2]
[350208029,1737690636836,-500.0,0.00019499,2]
[350208030,1737690636845,-500.0,0.00019499,2]
[350208031,1737690636993,-560.11,0.00019499,2]
[350208032,1737690637003,-660.66,0.00019499,2]
[350208033,1737690637012,-500.0,0.00019499,2]
[350208034,1737690637022,-500.0,0.00019499,2]
[350208035,1737690637031,-500.0,0.00019499,2]
[350208036,1737690637040,-500.0,0.00019499,2]
[350208037,1737690637050,-500.0,0.00019499,2]
[350208038,1737690637059,-488.1868277,0.00019499,2]
[350208039,1737690637068,-500.0,0.00019499,2]
[350208040,1737690637077,-500.0,0.00019499,2]
[350208041,1737690637091,-500.0,0.00019499,2]
[350208042,1737690637100,-500.0,0.00019499,2]
[350208043,1737690637111,-161.28990915,0.00019499,2]
[350208044,1737690637122,-500.0,0.00019499,2]
[350208045,1737690637132,-513.54,0.00019499,2]
[350208046,1737690637142,-500.0,0.00019499,2]
[350208047,1737690637151,-786.43,0.00019499,2]
[350208048,1737690637161,-500.0,0.00019499,2]
[350208049,1737690637171,-500.0,0.00019499,2]
[350208050,1737690637181,-500.0,0.00019499,2]
[350208051,1737690637192,-528.31760189,0.00019499,2]
[350208052,1737690637202,-500.0,0.00019499,2]
[350208053,1737690637212,-500.0,0.00019499,2]
[350208054,1737690637222,-1232.26,0.00019499,2]
[350208055,1737690637231,-509.58540097,0.00019499,2]
[350208056,1737690637241,-518.94,0.00019499,2]
[350208057,1737690637251,-500.0,0.00019499,2]
[350208058,1737690637261,-500.0,0.00019499,2]
[350208059,1737690637270,-430.19564658,0.00019499,2]
[350208060,1737690637280,-500.0,0.00019499,2]
[350208061,1737690637289,-500.0,0.00019499,2]
[350208062,1737690637298,-500.0,0.00019499,2]
[350208063,1737690637307,-500.0,0.00019499,2]
[350208064,1737690637317,-500.0,0.00019499,2]
[350208065,1737690637327,-500.0,0.00019499,2]
[350208066,1737690637341,-500.0,0.00019499,2]
[350208067,1737690637351,-1558.41,0.00019499,2]
[350208068,1737690637360,-551.68821851,0.00019499,2]
[350208069,1737690637370,-595.69523691,0.00019499,2]
[350208070,1737690637380,-500.0,0.00019499,2]
[350208071,1737690637389,-500.0,0.00019499,2]
[350208072,1737690637399,-502.79105929,0.00019499,2]
[350208073,1737690637409,-500.0,0.00019499,2]
[350208074,1737690637419,-500.0,0.00019499,2]
[350208075,1737690637428,-503.30562751,0.00019499,2]
[350208076,1737690637438,-500.0,0.00019499,2]
[350208077,1737690637448,-500.0,0.00019499,2]
[350208078,1737690637457,-500.0,0.00019499,2]
[350208079,1737690637468,-500.0,0.00019499,2]
[350208080,1737690637478,-500.0,0.00019499,2]
[350208081,1737690637488,-500.0,0.00019499,2]
[350208082,1737690637499,-606.46,0.00019499,2]
[350208083,1737690637509,-500.0,0.00019499,2]
[350208084,1737690637519,-500.0,0.00019499,2]
[350208085,1737690637529,-500.0,0.00019499,2]
[350208086,1737690637538,-507.91073417,0.00019499,2]
[350208087,1737690637548,-500.0,0.00019499,2]
[350208088,1737690637557,-500.0,0.00019499,2]
[350208089,1737690637567,-856.25,0.00019499,2]
[350208090,1737690637577,-500.0,0.00019499,2]
[350208091,1737690637594,-500.0,0.00019499,2]
[350208092,1737690637603,-500.0,0.00019499,2]
[350208093,1737690637613,-500.0,0.00019499,2]
[350208094,1737690637622,-500.0,0.00019499,2]
[350208095,1737690637631,-500.0,0.00019499,2]
[350208096,1737690637641,-737.88,0.00019499,2]
[350208097,1737690637650,-500.0,0.00019499,2]
[350208098,1737690637660,-548.2,0.00019499,2]
[350208099,1737690637669,-500.0,0.00019499,2]
[350208100,1737690637679,-553.56,0.00019499,2]
[350208101,1737690637688,-500.0,0.00019499,2]
[350208102,1737690637698,-500.0,0.00019499,2]
[350208103,1737690637707,-500.0,0.00019499,2]
[350208104,1737690637716,-500.0,0.00019499,2]
[350208105,1737690637726,-500.0,0.00019499,2]
[350208106,1737690637735,-500.0,0.00019499,2]
[350208107,1737690637744,-500.0,0.00019499,2]
[350208108,1737690637754,-500.0,0.00019499,2]
[350208109,1737690637763,-500.0,0.00019499,2]
[350208110,1737690637772,-500.0,0.00019499,2]
[350208111,1737690637782,-500.0,0.00019499,2]
[350208113,1737690637791,-505.10260799,0.00019499,2]
[350208114,1737690637800,-500.0,0.00019499,2]
[350208115,1737690637809,-500.0,0.00019499,2]
[350208116,1737690637818,-500.0,0.00019499,2]
[350208117,1737690637828,-502.20046919,0.00019499,2]
[350208118,1737690637843,-500.0,0.00019499,2]
[350208119,1737690637852,-500.0,0.00019499,2]
[350208120,1737690637862,-596.01786947,0.00019499,2]
[350208121,1737690637871,-500.0,0.00019499,2]
[350208122,1737690637881,-637.45,0.00019499,2]
[350208124,1737690637891,-500.0,0.00019499,2]
[350208125,1737690637900,-557.79,0.00019499,2]
[350208126,1737690637910,-505.52769543,0.00019499,2]
[350208127,1737690637919,-500.0,0.00019499,2]
[350208128,1737690637929,-506.26270532,0.00019499,2]
[350208129,1737690637939,-500.0,0.00019499,2]
[350208130,1737690637948,-530.88963568,0.00019499,2]
[350208131,1737690637958,-500.0,0.00019499,2]
[350208132,1737690637967,-923.93,0.00019499,2]
[350208133,1737690637977,-500.0,0.00019499,2]
[350208134,1737690637987,-644.54,0.00019499,2]
[350208135,1737690637996,-235.54968333,0.00019499,2]
[350208136,1737690638006,-512.28363801,0.00019499,2]
[350208137,1737690638015,-500.0,0.00019499,2]
[350208138,1737690638025,-500.0,0.00019499,2]
[350208139,1737690638034,-500.0,0.00019499,2]
[350208140,1737690638044,-500.0,0.00019499,2]
[350208141,1737690638053,-500.0,0.00019499,2]
[350208142,1737690638063,-500.0,0.00019499,2]
[350208143,1737690638073,-500.0,0.00019499,2]
[350208144,1737690638086,-502.22386043,0.00019499,2]
[350208145,1737690638095,-631.21120888,0.00019499,2]
[350208146,1737690638105,-254.48314595,0.00019499,2]
[350208147,1737690638117,-500.0,0.00019499,2]
[350208148,1737690638127,-500.0,0.00019499,2]
[350208149,1737690638137,-500.0,0.00019499,2]
[350208150,1737690638147,-500.0,0.00019499,2]
[350208151,1737690638156,-500.0,0.00019499,2]
[350208152,1737690638166,-508.17617039,0.00019499,2]
[350208153,1737690638175,-507.52633958,0.00019499,2]
[350208154,1737690638185,-500.0,0.00019499,2]
[350208155,1737690638195,-422.0418076,0.00019499,2]
[350208156,1737690638205,-500.0,0.00019499,2]
[350208157,1737690638215,-500.0,0.00019499,2]
[350208158,1737690638224,-966.98,0.00019499,2]
[350208159,1737690638234,-571.19,0.00019499,2]
[350208160,1737690638243,-500.0,0.00019499,2]
[350208161,1737690638253,-538.61072124,0.00019499,2]
[350208162,1737690638262,-500.0,0.00019499,2]
[350208163,1737690638271,-582.9,0.00019499,2]
[350208164,1737690638280,-500.0,0.00019499,2]
[350208165,1737690638290,-1099.38,0.00019499,2]
[350208166,1737690638299,-277.92783304,0.00019499,2]
[350208167,1737690638308,-511.26844383,0.00019499,2]
[350208168,1737690638317,-1052.35,0.00019499,2]
[350208169,1737690638326,-500.0,0.00019499,2]
[350208170,1737690638337,-540.0,0.000195,2]
[350208171,1737690638346,-372656.35894604,0.000195,2]
[350208172,1737690638355,-884472.59261675,0.000195,15]
[350208173,1737690638518,-243.28187287,0.000194,3]
[350208174,1737690638528,-954.71137807,0.000195,15]
[350208175,1737690638539,-1686.730755,0.000195,15]
[350208176,1737690638554,-353.906,0.000195,15]
[350208177,1737690638566,-472.12295122,0.000195,15]
[350208179,1737690638582,-623.7274635,0.000195,15]
[350208181,1737690638594,-510015.29669267,0.000195,15]
[350208182,1737690638610,-231357.60143625,0.000195,15]
[350208184,1737690638622,-39499.9986413,0.000195,15]
[350208185,1737690638633,-299650.00011823,0.000195,15]
[350208186,1737690638645,-1036800.00000002,0.000195,15]
[350208187,1737690638656,-255.855,0.000195,15]
[350208188,1737690638667,-7453.20819187,0.000195,15]
[350208189,1737690638679,-7858.54724254,0.000195,15]
[350208197,1737690638927,-1105.0,0.000194,2]
[350208198,1737690638942,-10985.55453406,0.000194,2]
[350208199,1737690638953,-3185.23525957,0.000194,2]
[350208200,1737690638964,-1701.59071505,0.000194,2]
[350208201,1737690638975,-500.0,0.00019498,2]
[350208202,1737690638984,-500.0,0.00019498,2]
[350208203,1737690638994,-646.81,0.00019498,2]
[350208204,1737690639003,-500.0,0.00019499,2]
[350208205,1737690639012,-500.0,0.00019499,2]
[350208206,1737690639021,-520.5800495,0.00019499,2]
[350208207,1737690639031,-508.32121498,0.00019499,2]
[350208208,1737690639040,-500.0,0.00019499,2]
[350208209,1737690639049,-1016533.53424554,0.000195,15]
[350208210,1737690639061,-341827.55959218,0.000195,15]
[350208211,1737690639073,-8761.84624714,0.000195,15]
[350208212,1737690639087,-355.17091682,0.000195,15]
[350208213,1737690639098,-20823.99999999,0.000195,15]
[350208214,1737690639111,-70047.5,0.000195,15]
[350208219,1737690640397,-164.29648915,0.000194,2]
[350208220,1737690640407,-500.0,0.00019498,2]
[350208221,1737690640416,-854.32191822,0.00019499,2]
[350208222,1737690640426,-500.0,0.00019499,2]
[350208223,1737690640436,-500.0,0.00019499,2]
[350208224,1737690640445,-129630.5289651,0.000195,15]
[350208225,1737690640458,-442.54964062,0.000195,15]
[350208226,1737690640470,-1906.35,0.000195,15]
[350208233,1737690643058,-433.06183991,0.00019498,2]
[350208234,1737690643120,-66.93816009,0.00019498,2]
[350208235,1737690643131,-510.77123138,0.00019499,2]
[350208236,1737690643140,-500.0,0.00019499,2]
[350208237,1737690643151,-9796.49550404,0.000195,15]
[350208238,1737690643163,-9836.2,0.000195,15]
[350208239,1737690643174,-3704.03292685,0.000195,15]
[350208240,1737690643289,-10495.9304846,0.000195,15]
[350208241,1737690643300,-5071.6967929,0.000195,15]
[350208242,1737690643402,-52080.0,0.000195,15]
[350208266,1737690646113,-500.0,0.00019499,2]
[350208267,1737690646126,-500.0,0.00019499,2]
[350208268,1737690646135,-40.87401999,0.000195,2]
[350208269,1737690646147,-511.12598001,0.000195,2]
[350208270,1737690646156,-357.98450046,0.000195,15]
[350208271,1737690646278,-30608.9443115,0.000195,15]
[350208272,1737690646335,-508.97,0.00019498,2]
[350208273,1737690646345,-232.84150001,0.000195,15]
[350208274,1737690646356,-1643.642045,0.000195,15]
[350208278,1737690974441,164.0,0.00010137,2]
[350208283,1737691810711,151.92,0.00010137,2]
[350208300,1737691832335,-550.0,0.00015,2]
[350208301,1737691832346,-500.0,0.00015,2]
[350208302,1737691832357,-500.0,0.00015,2]
[350208303,1737691832369,-660.97,0.00016362,2]
[350208304,1737691832381,-158.13844959,0.00016799,2]
[350208305,1737691832393,-150969.77239918,0.00016899,2]
[350208306,1737691832405,-600.0,0.00017,2]
[350208307,1737691832415,-200.0,0.00017069,2]
[350208308,1737691832426,-12227.03861723,0.00017143,2]
[350208309,1737691832439,-11672.96138277,0.00017143,2]
[350208310,1737691832450,-250.0,0.00017281,2]
[350208311,1737691832464,-173.04,0.0001743,2]
[350208312,1737691832474,-250.0,0.00017553,2]
[350208313,1737691832485,-1500.0,0.00017638,2]
[350208314,1737691832495,-168.14,0.00017794,2]
[350208315,1737691832507,-150.0,0.00017815,2]
[350208316,1737691832518,-3210.12448603,0.00017815,2]
[350208317,1737691832533,-693.87551397,0.00017815,2]
[350208318,1737691832544,-430.8522,0.00017987,2]
[350208319,1737691832555,-1811.4293,0.00018021,2]
[350208320,1737691832565,-7890.17,0.0001804,2]
[350208321,1737691832575,-7890.17,0.00018045,2]
[350208322,1737691832586,-7890.17,0.0001805,2]
[350208323,1737691832596,-7890.17,0.00018054,2]
[350208324,1737691832607,-7890.17,0.00018059,2]
[350208325,1737691832617,-7890.17,0.00018064,2]
[350208326,1737691832628,-500.0,0.00018068,2]
[350208327,1737691832639,-800.0,0.00018068,2]
[350208328,1737691832649,-7890.17,0.00018068,2]
[350208329,1737691832661,-4000.0,0.00018069,2]
[350208330,1737691832672,-7890.17,0.00018073,2]
[350208331,1737691832683,-7890.17,0.00018078,2]
[350208332,1737691832693,-175.15,0.00018082,2]
[350208333,1737691832704,-7890.17,0.00018083,2]
[350208334,1737691832715,-7890.17,0.00018087,2]
[350208336,1737691832725,-117161.53585744,0.00018092,2]
[350208338,1737691832736,-7890.17,0.00018092,2]
[350208339,1737691832746,-7890.17,0.00018097,2]
[350208340,1737691832757,-7890.17,0.00018102,2]
[350208341,1737691832768,-7890.17,0.00018106,2]
[350208343,1737691832779,-473.24,0.00018111,2]
[350208345,1737691832790,-7890.17,0.00018111,2]
[350208347,1737691832801,-7890.17,0.00018116,2]
[350208349,1737691832811,-1000.0,0.00018117,2]
[350208352,1737691832822,-7890.17,0.00018121,2]
[350208354,1737691832832,-7890.17,0.00018125,2]
[350208355,1737691832842,-7890.17,0.0001813,2]
[350208356,1737691832852,-250.0,0.00018139,2]
[350208357,1737691832863,-2126.0,0.000182,2]
[350208358,1737691832874,-174.45,0.00018284,2]
[350208359,1737691832889,-632.88,0.00018333,2]
[350208360,1737691832899,-299.65,0.00018423,2]
[350208361,1737691832911,-2492.21989927,0.00018554,2]
[350208362,1737691832922,-6014.36307345,0.00018558,2]
[350208363,1737691832933,-2492.21989927,0.00018562,2]
[350208365,1737691832944,-200.0,0.00018562,2]
[350208367,1737691832955,-486.47056937,0.0001858,2]
[350208368,1737691832965,-487.092,0.00018582,2]
[350208369,1737691832976,-2019.0,0.00018582,2]
[350208370,1737691832987,-639.647,0.00018582,2]
[350208371,1737691832998,-569.778,0.00018582,2]
[350208372,1737691833009,-151.075,0.00018582,2]
[350208373,1737691833020,-1865.0,0.00018582,2]
[350208374,1737691833031,-1261.0,0.00018582,2]
[350208375,1737691833041,-2949.0,0.00018582,2]
[350208376,1737691833053,-782.0,0.00018582,2]
[350208377,1737691833064,-908.0,0.00018582,2]
[350208378,1737691833075,-538.0,0.00018582,2]
[350208379,1737691833086,-150.0,0.00018582,2]
[350208380,1737691833097,-3986.0,0.00018582,2]
[350208381,1737691833107,-2492.21989927,0.00018593,2]
[350208382,1737691833118,-6014.36307345,0.00018596,2]
[350208383,1737691833131,-2492.21989927,0.00018599,2]
[350208384,1737691833142,-486.47056937,0.00018606,2]